[Event "EYCC Girls-U12 2019"]
[Site "Bratislava"]
[Date "2019.08.04"]
[Round "3.5"]
[White "Kalenichenko, Alina"]
[Black "Karaivanova, Petya"]
[Result "1/2-1/2"]
[ECO "D10"]
[WhiteElo "1549"]
[BlackElo "1792"]
[Annotator "NA"]
[PlyCount "119"]
[EventDate "2019.08.02"]
[EventType "swiss"]
[EventCountry "SVK"]
[SourceTitle "playchess.com"]
[Source "ChessBase"]
[SourceQuality "1"]
[TimeControl "40/5400+30:1800+30"]

1. d4 {[%emt 0:00:00]} d5 {[%emt 0:00:00]} 2. c4 {[%emt 0:00:00]} c6 {[%emt 0:00:00]} 3. cxd5 {[%emt 0:00:00]} cxd5 {[%emt 0:00:00]} 4. Nc3 {[%emt 0:00:00]} Nf6 {[%emt 0:00:00]} 5. Bf4 {[%emt 0:00:09]} Nc6 {[%emt 0:00:12]} 6. e3 {[%emt 0:00:07]} a6 {[%emt 0:00:07]} 7. Bd3 {[%emt 0:00:16]} e6 {[%emt 0:00:24]} 8. Rc1 {[%emt 0:00:18]} Be7 {[%emt 0:01:03]} 9. Nf3 {[%emt 0:00:13]} O-O {[%emt 0:01:04]} 10. O-O {[%emt 0:00:09]} Bd7 {[%emt 0:00:56]} 11. Ne5 {[%emt 0:00:34]} Rc8 {[%emt 0:07:39]} 12. Na4 {[%emt 0:07:01]} Nb4 {[%emt 0:05:21]} 13. Rxc8 {[%emt 0:00:17]} Qxc8 {[%emt 0:04:23]} 14. Nb6 {[%emt 0:02:19]} Qd8 {[%emt 0:01:45]} 15. Nbxd7 {[%emt 0:00:20]} Nxd7 {[%emt 0:00:47]} 16. Nxd7 {[%emt 0:06:52]} Qxd7 {[%emt 0:00:43]} 17. Bb1 {[%emt 0:00:37]} Rc8 {[%emt 0:09:23]} 18. a3 {[%emt 0:00:13]} Nc6 {[%emt 0:00:14]} 19. b4 {[%emt 0:05:18]} Na7 {[%emt 0:04:07]} 20. Qg4 {[%emt 0:11:25]} f5 {[%emt 0:04:57]} 21. Qh5 {[%emt 0:02:18]} Nb5 {[%emt 0:10:08]} 22. g4 {[%emt 0:01:28]} g6 {[%emt 0:03:08]} 23. Qh6 {[%emt 0:00:52]} Nxa3 {[%emt 0:06:32]} 24. gxf5 {[%emt 0:02:23]} exf5 {[%emt 0:02:57]} 25. h4 {[%emt 0:03:48]} Nxb1 {[%emt 0:01:41]} 26. Rxb1 {[%emt 0:00:09]} Rc6 {[%emt 0:05:31]} 27. Be5 {[%emt 0:02:39]} Bf8 {[%emt 0:01:25]} 28. Qg5 {[%emt 0:00:12]} Bg7 {[%emt 0:03:30]} 29. Bxg7 {[%emt 0:01:39]} Kxg7 {[%emt 0:00:07]} 30. Qf4 {[%emt 0:01:24]} Qe7 {[%emt 0:07:25]} 31. b5 {[%emt 0:01:02]} Rb6 {[%emt 0:07:13]} 32. Rc1 {[%emt 0:04:43]} Rd6 {[%emt 0:01:26]} 33. b6 {[%emt 0:00:49]} Rd7 {[%emt 0:00:43]} 34. Rc7 {[%emt 0:04:27]} Kf7 {[%emt 0:01:30]} 35. h5 {[%emt 0:01:36]} gxh5 {[%emt 0:04:42]} 36. Qxf5+ {[%emt 0:00:24]} Ke8 {[%emt 0:00:04]} 37. Rc8+ {[%emt 0:00:46]} Rd8 {[%emt 0:00:04]} 38. Qxh5+ {[%emt 0:00:26]} Kf8 {[%emt 0:00:33]} 39. Qf5+ {[%emt 0:09:05]} Ke8 {[%emt 0:00:38]} 40. Rc7 {[%emt 0:00:00]} Rd7 {[%emt 0:00:00]} 41. Rxd7 {[%emt 0:13:49]} Qxd7 {[%emt 0:01:14]} 42. Qe5+ {[%emt 0:00:09]} Kf7 {[%emt 0:05:40]} 43. Qc7 {[%emt 0:00:14]} Ke8 {[%emt 0:02:12]} 44. Qb8+ {[%emt 0:01:03]} Kf7 {[%emt 0:01:12]} 45. Qf4+ {[%emt 0:00:15]} Kg8 {[%emt 0:01:24]} 46. Qb8+ {[%emt 0:01:04]} Kf7 {[%emt 0:00:17]} 47. Qc7 {[%emt 0:00:07]} Ke8 {[%emt 0:00:24]} 48. Qe5+ {[%emt 0:00:06]} Kf7 {[%emt 0:00:05]} 49. Qh5+ {[%emt 0:00:06]} Kg8 {[%emt 0:00:44]} 50. Kh1 {[%emt 0:02:44]} Kg7 {[%emt 0:02:33]} 51. Qg5+ {[%emt 0:00:49]} Kf7 {[%emt 0:00:56]} 52. Qh5+ {[%emt 0:01:30]} Kg8 {[%emt 0:00:17]} 53. f4 {[%emt 0:02:02]} Qe6 {[%emt 0:02:27]} 54. Qg5+ {[%emt 0:00:18]} Kf7 {[%emt 0:01:00]} 55. Qh5+ {[%emt 0:00:46]} Kg8 {[%emt 0:02:27]} 56. Qg5+ {[%emt 0:00:24]} Kf7 {[%emt 0:00:11]} 57. Qh5+ {[%emt 0:00:28]} Kg7 {[%emt 0:00:41]} 58. Qg5+ {[%emt 0:00:14]} Kf7 {[%emt 0:00:13]} 59. Qh5+ {[%emt 0:00:51]} Kg7 {[%emt 0:00:23]} 60. Qg5+ 1/2-1/2

[Event "EYCC Girls-U12 2019"]
[Site "Bratislava"]
[Date "2019.08.04"]
[Round "3.6"]
[White "Buyuk, Ecrin Efsa"]
[Black "Schippke, Manon"]
[Result "1-0"]
[ECO "B52"]
[WhiteElo "1592"]
[BlackElo "1743"]
[Annotator "NA"]
[PlyCount "120"]
[EventDate "2019.08.02"]
[EventType "swiss"]
[EventCountry "SVK"]
[SourceTitle "playchess.com"]
[Source "ChessBase"]
[SourceQuality "1"]
[TimeControl "40/5400+30:1800+30"]

1. e4 {[%emt 0:00:00]} c5 {[%emt 0:00:32]} 2. Nf3 {[%emt 0:00:18]} d6 {[%emt 0:00:38]} 3. Bb5+ {[%emt 0:00:40]} Bd7 {[%emt 0:02:23]} 4. Bxd7+ {[%emt 0:01:24]} Nxd7 {[%emt 0:05:44]} 5. O-O {[%emt 0:01:08]} Ngf6 {[%emt 0:01:13]} 6. Qe2 {[%emt 0:00:39]} e5 {[%emt 0:03:00]} 7. c4 {[%emt 0:03:51]} g6 {[%emt 0:08:17]} 8. d3 {[%emt 0:02:47]} Bg7 {[%emt 0:00:33]} 9. Nc3 {[%emt 0:00:26]} O-O {[%emt 0:01:13]} 10. Ne1 {[%emt 0:08:21]} Nh5 {[%emt 0:06:00]} 11. Qf3 {[%emt 0:42:16]} Nb8 {[%emt 0:12:46]} 12. Nc2 {[%emt 0:05:44]} Nc6 {[%emt 0:00:17]} 13. Be3 {[%emt 0:02:51]} Nd4 {[%emt 0:05:32]} 14. Bxd4 {[%emt 0:03:11]} cxd4 {[%emt 0:00:09]} 15. Nd5 {[%emt 0:00:06]} Qg5 {[%emt 0:02:06]} 16. Qe2 {[%emt 0:02:19]} Nf4 {[%emt 0:04:05]} 17. Nxf4 {[%emt 0:00:14]} exf4 {[%emt 0:02:19]} 18. Nb4 {[%emt 0:00:34]} Be5 {[%emt 0:05:12]} 19. Nd5 {[%emt 0:01:33]} Qh6 {[%emt 0:11:23]} 20. f3 {[%emt 0:01:52]} Kh8 {[%emt 0:02:42]} 21. Qd2 {[%emt 0:05:27]} f5 {[%emt 0:03:03]} 22. Rae1 {[%emt 0:05:11]} fxe4 {[%emt 0:01:32]} 23. Rxe4 {[%emt 0:01:06]} Rf5 {[%emt 0:02:09]} 24. g3 {[%emt 0:02:42]} g5 {[%emt 0:01:48]} 25. g4 {[%emt 0:00:25]} Rf7 {[%emt 0:00:31]} 26. Rfe1 {[%emt 0:01:22]} Qg6 {[%emt 0:02:12]} 27. R1e2 {[%emt 0:01:05]} Rg8 {[%emt 0:00:30]} 28. h3 {[%emt 0:00:29]} Qe6 {[%emt 0:01:59]} 29. Rh2 {[%emt 0:01:06]} Qh6 {[%emt 0:00:22]} 30. Qf2 {[%emt 0:00:35]} Qh4 {[%emt 0:00:11]} 31. Qxh4 {[%emt 0:00:09]} gxh4 {[%emt 0:00:05]} 32. Rg2 {[%emt 0:00:34]} h6 {[%emt 0:01:03]} 33. Nb4 {[%emt 0:01:16]} Rb8 {[%emt 0:02:23]} 34. Nc2 {[%emt 0:00:30]} b5 {[%emt 0:00:47]} 35. Nxd4 {[%emt 0:00:38]} bxc4 {[%emt 0:00:42]} 36. dxc4 {[%emt 0:00:43]} Rb6 {[%emt 0:01:54]} 37. b3 {[%emt 0:00:39]} Bxd4+ {[%emt 0:00:53]} 38. Rxd4 {[%emt 0:00:04]} Rf6 {[%emt 0:00:07]} 39. Rd5 {[%emt 0:00:11]} Kg7 {[%emt 0:00:31]} 40. Kf1 {[%emt 0:00:00]} Ra6 {[%emt 0:00:00]} 41. Rgd2 {[%emt 0:01:21]} Rg6 {[%emt 0:02:05]} 42. Rh5 {[%emt 0:01:09]} Rg5 {[%emt 0:00:18]} 43. Rxg5+ {[%emt 0:00:06]} hxg5 {[%emt 0:00:06]} 44. Ke2 {[%emt 0:00:09]} Kf6 {[%emt 0:00:13]} 45. Kd3 {[%emt 0:00:16]} Ra5 {[%emt 0:00:45]} 46. Ke2 {[%emt 0:01:23]} Ke5 {[%emt 0:00:10]} 47. a4 {[%emt 0:00:43]} Rc5 {[%emt 0:00:35]} 48. Kd3 {[%emt 0:00:41]} d5 {[%emt 0:00:38]} 49. Kc3 {[%emt 0:01:08]} dxc4 {[%emt 0:00:47]} 50. bxc4 {[%emt 0:00:06]} a5 {[%emt 0:00:17]} 51. Rd8 {[%emt 0:00:39]} Kf6 {[%emt 0:00:27]} 52. Rd5 {[%emt 0:00:44]} Rxd5 {[%emt 0:00:47]} 53. cxd5 {[%emt 0:00:04]} Ke5 {[%emt 0:00:05]} 54. Kc4 {[%emt 0:00:03]} Kd6 {[%emt 0:00:11]} 55. Kd4 {[%emt 0:00:05]} Kd7 {[%emt 0:00:04]} 56. Kc5 {[%emt 0:00:08]} Kc7 {[%emt 0:00:05]} 57. d6+ {[%emt 0:00:03]} Kd7 {[%emt 0:00:03]} 58. Kd5 {[%emt 0:00:04]} Kd8 {[%emt 0:00:04]} 59. Ke6 {[%emt 0:00:17]} Ke8 {[%emt 0:00:09]} 60. Kf5 {[%emt 0:00:03]} Kd7 {[%emt 0:00:11]} 1-0

[Event "EYCC Girls-U12 2019"]
[Site "Bratislava"]
[Date "2019.08.04"]
[Round "3.7"]
[White "Norman, Kseniya"]
[Black "Lomakina, Anzhelika"]
[Result "1/2-1/2"]
[ECO "C65"]
[WhiteElo "1532"]
[BlackElo "1752"]
[Annotator "NA"]
[PlyCount "128"]
[EventDate "2019.08.02"]
[EventType "swiss"]
[EventCountry "SVK"]
[SourceTitle "playchess.com"]
[Source "ChessBase"]
[SourceQuality "1"]
[TimeControl "40/5400+30:1800+30"]

1. e4 {[%emt 0:00:00]} e5 {[%emt 0:00:00]} 2. Nf3 {[%emt 0:00:00]} Nc6 {[%emt 0:00:00]} 3. Bb5 {[%emt 0:00:00]} Nf6 {[%emt 0:00:00]} 4. Qe2 {[%emt 0:00:00]} Bc5 {[%emt 0:00:00]} 5. c3 {[%emt 0:00:05]} O-O {[%emt 0:00:12]} 6. O-O {[%emt 0:00:10]} Re8 {[%emt 0:05:56]} 7. d3 {[%emt 0:01:25]} h6 {[%emt 0:02:59]} 8. Be3 {[%emt 0:02:19]} Bb6 {[%emt 0:01:07]} 9. Nbd2 {[%emt 0:03:04]} d5 {[%emt 0:01:07]} 10. exd5 {[%emt 0:08:24]} Nxd5 {[%emt 0:04:45]} 11. Nc4 {[%emt 0:01:25]} Bg4 {[%emt 0:03:54]} 12. h3 {[%emt 0:02:37]} Nf4 {[%emt 0:04:04]} 13. Qd1 {[%emt 0:02:07]} Bh5 {[%emt 0:02:11]} 14. Bxf4 {[%emt 0:06:03]} exf4 {[%emt 0:00:09]} 15. d4 {[%emt 0:00:23]} Qd5 {[%emt 0:01:20]} 16. Nxb6 {[%emt 0:01:25]} axb6 {[%emt 0:02:09]} 17. c4 {[%emt 0:00:39]} Qf5 {[%emt 0:03:24]} 18. d5 {[%emt 0:01:35]} Red8 {[%emt 0:01:18]} 19. Bxc6 {[%emt 0:12:49]} bxc6 {[%emt 0:00:21]} 20. Nd4 {[%emt 0:00:09]} Qg5 {[%emt 0:02:25]} 21. Nf3 {[%emt 0:01:43]} Bxf3 {[%emt 0:03:02]} 22. Qxf3 {[%emt 0:00:09]} cxd5 {[%emt 0:00:31]} 23. cxd5 {[%emt 0:00:23]} Rxd5 {[%emt 0:00:52]} 24. Rfc1 {[%emt 0:00:36]} c5 {[%emt 0:03:07]} 25. Rc4 {[%emt 0:01:03]} Qe5 {[%emt 0:05:00]} 26. Rxf4 {[%emt 0:14:30]} Qxb2 {[%emt 0:04:23]} 27. Re1 {[%emt 0:00:51]} Qd2 {[%emt 0:04:02]} 28. Rfe4 {[%emt 0:00:55]} Rf8 {[%emt 0:07:06]} 29. R4e2 {[%emt 0:02:25]} Qd3 {[%emt 0:03:43]} 30. Qf4 {[%emt 0:01:26]} b5 {[%emt 0:03:18]} 31. Re3 {[%emt 0:04:49]} Qf5 {[%emt 0:00:42]} 32. Qc7 {[%emt 0:00:37]} Qd7 {[%emt 0:07:41]} 33. Qb6 {[%emt 0:02:15]} c4 {[%emt 0:01:16]} 34. Re7 {[%emt 0:03:57]} Qd8 {[%emt 0:05:05]} 35. Qc6 {[%emt 0:04:06]} Qa8 {[%emt 0:02:07]} 36. Rb7 {[%emt 0:01:21]} Rc5 {[%emt 0:05:36]} 37. Qxc5 {[%emt 0:04:03]} Qxb7 {[%emt 0:00:06]} 38. Rb1 {[%emt 0:00:58]} Qa6 {[%emt 0:03:11]} 39. Qxb5 {[%emt 0:01:48]} Qxa2 {[%emt 0:00:54]} 40. Qb2 {[%emt 0:00:00]} Qxb2 {[%emt 0:00:00]} 41. Rxb2 {[%emt 0:00:38]} Rc8 {[%emt 0:11:32]} 42. Kf1 {[%emt 0:00:20]} f5 {[%emt 0:01:19]} 43. Ke2 {[%emt 0:00:35]} f4 {[%emt 0:00:52]} 44. Kf3 {[%emt 0:00:33]} g5 {[%emt 0:02:23]} 45. Rc2 {[%emt 0:00:28]} Kf7 {[%emt 0:02:25]} 46. Ke4 {[%emt 0:00:52]} Ke6 {[%emt 0:01:42]} 47. Rc3 {[%emt 0:00:59]} h5 {[%emt 0:01:29]} 48. f3 {[%emt 0:02:40]} Kf6 {[%emt 0:01:16]} 49. Rc2 {[%emt 0:01:27]} c3 {[%emt 0:02:12]} 50. Kd3 {[%emt 0:01:11]} g4 {[%emt 0:02:02]} 51. hxg4 {[%emt 0:00:40]} hxg4 {[%emt 0:00:06]} 52. Rxc3 {[%emt 0:00:54]} Rxc3+ {[%emt 0:00:09]} 53. Kxc3 {[%emt 0:00:03]} gxf3 {[%emt 0:00:11]} 54. gxf3 {[%emt 0:00:06]} Ke5 {[%emt 0:00:02]} 55. Kc4 {[%emt 0:00:10]} Ke6 {[%emt 0:01:06]} 56. Kd4 {[%emt 0:00:06]} Kf6 {[%emt 0:00:27]} 57. Ke4 {[%emt 0:00:08]} Ke6 {[%emt 0:00:11]} 58. Kxf4 {[%emt 0:00:06]} Kf6 {[%emt 0:00:01]} 59. Kg4 {[%emt 0:00:07]} Kg6 {[%emt 0:00:03]} 60. f4 {[%emt 0:00:05]} Kf6 {[%emt 0:00:03]} 61. f5 {[%emt 0:00:33]} Kf7 {[%emt 0:00:16]} 62. Kg5 {[%emt 0:00:05]} Kg7 {[%emt 0:00:06]} 63. f6+ {[%emt 0:00:05]} Kf7 {[%emt 0:00:15]} 64. Kf5 {[%emt 0:00:05]} Kf8 1/2-1/2

[Event "EYCC Girls-U12 2019"]
[Site "Bratislava"]
[Date "2019.08.04"]
[Round "3.8"]
[White "Denic, Hana"]
[Black "Gadasi, Noam"]
[Result "1/2-1/2"]
[ECO "B72"]
[WhiteElo "1821"]
[BlackElo "1585"]
[Annotator "NA"]
[PlyCount "62"]
[EventDate "2019.08.02"]
[EventType "swiss"]
[EventCountry "SVK"]
[SourceTitle "playchess.com"]
[Source "ChessBase"]
[SourceQuality "1"]
[TimeControl "40/5400+30:1800+30"]

1. e4 {[%emt 0:00:00]} c5 {[%emt 0:00:00]} 2. Nf3 {[%emt 0:00:02]} d6 {[%emt 0:00:00]} 3. d4 {[%emt 0:00:29]} cxd4 {[%emt 0:00:08]} 4. Nxd4 {[%emt 0:00:09]} Nf6 {[%emt 0:00:19]} 5. Nc3 {[%emt 0:00:35]} g6 {[%emt 0:00:23]} 6. Be3 {[%emt 0:03:48]} Bg7 {[%emt 0:00:30]} 7. h3 {[%emt 0:01:00]} O-O {[%emt 0:01:14]} 8. Qd2 {[%emt 0:01:28]} Nc6 {[%emt 0:01:02]} 9. O-O-O {[%emt 0:01:08]} d5 {[%emt 0:04:07]} 10. exd5 {[%emt 0:02:25]} Nxd5 {[%emt 0:00:42]} 11. Nxc6 {[%emt 0:03:02]} bxc6 {[%emt 0:00:10]} 12. Nxd5 {[%emt 0:00:54]} cxd5 {[%emt 0:00:11]} 13. Qxd5 {[%emt 0:01:19]} Qc7 {[%emt 0:00:49]} 14. Qxa8 {[%emt 0:02:56]} Bf5 {[%emt 0:00:09]} 15. Qxf8+ {[%emt 0:00:06]} Kxf8 {[%emt 0:00:07]} 16. Bd3 {[%emt 0:02:37]} Be6 {[%emt 0:06:57]} 17. a3 {[%emt 0:12:12]} h5 {[%emt 0:04:20]} 18. Rhe1 {[%emt 0:08:40]} Kg8 {[%emt 0:02:07]} 19. f3 {[%emt 0:05:48]} a5 {[%emt 0:20:55]} 20. Be4 {[%emt 0:05:04]} Kh7 {[%emt 0:03:23]} 21. Bd4 {[%emt 0:13:12]} Qf4+ {[%emt 0:03:02]} 22. Be3 {[%emt 0:00:51]} Qc7 {[%emt 0:09:49]} 23. Bd4 {[%emt 0:00:49]} Qf4+ {[%emt 0:01:32]} 24. Be3 {[%emt 0:00:51]} Qb8 {[%emt 0:05:45]} 25. Bd4 {[%emt 0:03:14]} Qf4+ {[%emt 0:00:32]} 26. Be3 {[%emt 0:00:58]} Qg3 {[%emt 0:04:11]} 27. Re2 {[%emt 0:03:03]} Bc4 {[%emt 0:03:35]} 28. Red2 {[%emt 0:03:13]} Qb8 {[%emt 0:00:27]} 29. c3 {[%emt 0:02:23]} Qg3 {[%emt 0:07:31]} 30. Rg1 {[%emt 0:04:04]} Be6 {[%emt 0:03:13]} 31. Rgd1 {[%emt 0:06:06]} Bb3 {[%emt 0:05:09]} 1/2-1/2

[Event "EYCC Girls-U12 2019"]
[Site "Bratislava"]
[Date "2019.08.04"]
[Round "3.9"]
[White "Komissarova, Soigina"]
[Black "Van, Foreest Machteld"]
[Result "0-1"]
[ECO "A05"]
[WhiteElo "1663"]
[BlackElo "2186"]
[Annotator "NA"]
[PlyCount "92"]
[EventDate "2019.08.02"]
[EventType "swiss"]
[EventCountry "SVK"]
[SourceTitle "playchess.com"]
[Source "ChessBase"]
[SourceQuality "1"]
[TimeControl "40/5400+30:1800+30"]

1. Nf3 {[%emt 0:00:00]} Nf6 {[%emt 0:00:00]} 2. c4 {[%emt 0:00:23]} b6 {[%emt 0:00:00]} 3. g3 {[%emt 0:00:49]} Bb7 {[%emt 0:00:00]} 4. Bg2 {[%emt 0:00:52]} e6 {[%emt 0:00:13]} 5. O-O {[%emt 0:00:48]} Be7 {[%emt 0:00:07]} 6. Nc3 {[%emt 0:01:26]} O-O {[%emt 0:00:11]} 7. Re1 {[%emt 0:02:29]} Ne4 {[%emt 0:00:05]} 8. Nxe4 {[%emt 0:03:39]} Bxe4 {[%emt 0:00:09]} 9. d3 {[%emt 0:00:56]} Bb7 {[%emt 0:00:03]} 10. e4 {[%emt 0:01:52]} c5 {[%emt 0:00:09]} 11. d4 {[%emt 0:03:03]} cxd4 {[%emt 0:00:37]} 12. Nxd4 {[%emt 0:00:58]} Nc6 {[%emt 0:07:03]} 13. b3 {[%emt 0:04:42]} Nxd4 {[%emt 0:14:52]} 14. Qxd4 {[%emt 0:01:05]} Bc5 {[%emt 0:06:58]} 15. Qd2 {[%emt 0:11:06]} Qe7 {[%emt 0:05:42]} 16. a3 {[%emt 0:01:33]} a5 {[%emt 0:01:19]} 17. Bb2 {[%emt 0:06:55]} Bc6 {[%emt 0:03:11]} 18. Red1 {[%emt 0:10:50]} f5 {[%emt 0:06:49]} 19. exf5 {[%emt 0:23:10]} Rxf5 {[%emt 0:01:27]} 20. Bd4 {[%emt 0:02:01]} Raf8 {[%emt 0:01:38]} 21. Ra2 {[%emt 0:05:42]} Bxg2 {[%emt 0:07:02]} 22. Kxg2 {[%emt 0:02:43]} Rf3 {[%emt 0:00:56]} 23. b4 {[%emt 0:06:55]} axb4 {[%emt 0:02:44]} 24. axb4 {[%emt 0:00:12]} Bxb4 {[%emt 0:06:55]} 25. Qe2 {[%emt 0:00:14]} Bc5 {[%emt 0:08:09]} 26. Qxf3 {[%emt 0:05:21]} Rxf3 {[%emt 0:00:03]} 27. Kxf3 {[%emt 0:00:06]} Qd6 {[%emt 0:01:14]} 28. Rad2 {[%emt 0:00:44]} Qc6+ {[%emt 0:04:22]} 29. Kg4 {[%emt 0:01:43]} Bb4 {[%emt 0:04:08]} 30. Rd3 {[%emt 0:01:20]} Qxc4 {[%emt 0:01:26]} 31. Kh3 {[%emt 0:00:12]} e5 {[%emt 0:02:31]} 32. Be3 {[%emt 0:00:28]} d6 {[%emt 0:00:52]} 33. Rd5 {[%emt 0:01:16]} b5 {[%emt 0:01:26]} 34. Kg2 Kf7 {[%emt 0:01:34]} 35. f4 {[%emt 0:01:20]} Qe2+ {[%emt 0:00:58]} 36. Bf2 {[%emt 0:00:21]} e4 {[%emt 0:00:24]} 37. Kg1 {[%emt 0:00:39]} e3 {[%emt 0:00:10]} 38. Bxe3 {[%emt 0:00:12]} Qxe3+ {[%emt 0:00:04]} 39. Kg2 {[%emt 0:00:06]} Bc5 {[%emt 0:01:09]} 40. Kh3 {[%emt 0:00:00]} Qe4 {[%emt 0:00:00]} 41. R5d2 {[%emt 0:01:55]} b4 {[%emt 0:01:24]} 42. Rb2 {[%emt 0:01:30]} Ke7 {[%emt 0:05:40]} 43. Rdd2 {[%emt 0:00:31]} Kd7 {[%emt 0:00:09]} 44. Re2 {[%emt 0:00:09]} Qf3 {[%emt 0:00:34]} 45. Ra2 {[%emt 0:00:28]} b3 {[%emt 0:00:14]} 46. Rab2 {[%emt 0:00:09]} Bd4 {[%emt 0:00:38]} 0-1

[Event "EYCC Girls-U12 2019"]
[Site "Bratislava"]
[Date "2019.08.04"]
[Round "3.10"]
[White "Mikheeva, Galina"]
[Black "Chicarosie, Ioana-Bianca"]
[Result "1/2-1/2"]
[ECO "C05"]
[WhiteElo "1952"]
[BlackElo "1580"]
[Annotator "NA"]
[PlyCount "83"]
[EventDate "2019.08.02"]
[EventType "swiss"]
[EventCountry "SVK"]
[SourceTitle "playchess.com"]
[Source "ChessBase"]
[SourceQuality "1"]
[TimeControl "40/5400+30:1800+30"]

1. e4 {[%emt 0:00:00]} e6 {[%emt 0:00:00]} 2. d4 {[%emt 0:00:00]} d5 {[%emt 0:00:07]} 3. Nd2 {[%emt 0:00:29]} Nf6 {[%emt 0:00:39]} 4. Bd3 {[%emt 0:00:32]} c5 {[%emt 0:05:47]} 5. dxc5 {[%emt 0:01:11]} Bxc5 {[%emt 0:08:33]} 6. Qf3 {[%emt 0:16:56]} Nc6 {[%emt 0:06:03]} 7. Ne2 {[%emt 0:07:13]} Ne5 {[%emt 0:04:57]} 8. Qg3 {[%emt 0:14:36]} Nxd3+ {[%emt 0:03:19]} 9. Qxd3 {[%emt 0:00:52]} Qb6 {[%emt 0:02:56]} 10. O-O {[%emt 0:01:39]} dxe4 {[%emt 0:03:39]} 11. Nxe4 {[%emt 0:00:38]} Nxe4 {[%emt 0:00:42]} 12. Qxe4 {[%emt 0:00:07]} Bd7 {[%emt 0:01:37]} 13. b3 {[%emt 0:04:55]} O-O {[%emt 0:01:05]} 14. Bb2 {[%emt 0:00:35]} Rad8 {[%emt 0:01:27]} 15. Rad1 {[%emt 0:04:36]} Bc6 {[%emt 0:14:14]} 16. Qh4 {[%emt 0:01:41]} f6 {[%emt 0:02:22]} 17. Nd4 {[%emt 0:23:10]} e5 {[%emt 0:06:07]} 18. Ne6 {[%emt 0:06:06]} Rxd1 {[%emt 0:00:42]} 19. Rxd1 {[%emt 0:00:04]} Re8 {[%emt 0:00:36]} 20. Nxc5 {[%emt 0:04:14]} Qxc5 {[%emt 0:00:11]} 21. c4 {[%emt 0:01:46]} Qa5 {[%emt 0:01:00]} 22. a3 {[%emt 0:01:25]} Rd8 {[%emt 0:03:11]} 23. Qg4 {[%emt 0:04:49]} Rxd1+ {[%emt 0:03:35]} 24. Qxd1 {[%emt 0:00:07]} Qc7 {[%emt 0:00:18]} 25. b4 {[%emt 0:01:21]} Qd7 {[%emt 0:02:22]} 26. Qxd7 {[%emt 0:01:33]} Bxd7 {[%emt 0:00:05]} 27. Kf1 {[%emt 0:00:42]} Be6 {[%emt 0:00:52]} 28. c5 {[%emt 0:00:04]} a6 {[%emt 0:02:30]} 29. Ke2 {[%emt 0:00:09]} Bc4+ {[%emt 0:00:42]} 30. Kd2 {[%emt 0:01:17]} Kf7 {[%emt 0:00:22]} 31. Kc3 {[%emt 0:00:28]} Bf1 {[%emt 0:00:12]} 32. g3 {[%emt 0:00:35]} Ke6 {[%emt 0:00:14]} 33. Bc1 {[%emt 0:00:41]} Kd5 {[%emt 0:01:06]} 34. f3 {[%emt 0:01:12]} g6 {[%emt 0:01:29]} 35. a4 {[%emt 0:00:22]} f5 {[%emt 0:01:03]} 36. f4 {[%emt 0:00:45]} e4 {[%emt 0:01:01]} 37. Be3 {[%emt 0:00:31]} Bd3 {[%emt 0:00:16]} 38. Bf2 {[%emt 0:00:57]} Bf1 {[%emt 0:00:19]} 39. Be3 {[%emt 0:00:04]} Bd3 {[%emt 0:00:06]} 40. Kb3 {[%emt 0:00:00]} Bc4+ {[%emt 0:00:00]} 41. Kc3 {[%emt 0:00:47]} Bd3 {[%emt 0:01:02]} 42. Kb3 {[%emt 0:01:34]} 1/2-1/2

[Event "EYCC Girls-U12 2019"]
[Site "Bratislava"]
[Date "2019.08.04"]
[Round "3.11"]
[White "Manko, Mariya"]
[Black "Tsirekidze, Barbare"]
[Result "1/2-1/2"]
[ECO "A14"]
[WhiteElo "1807"]
[BlackElo "1527"]
[Annotator "NA"]
[PlyCount "92"]
[EventDate "2019.08.02"]
[EventType "swiss"]
[EventCountry "SVK"]
[SourceTitle "playchess.com"]
[Source "ChessBase"]
[SourceQuality "1"]
[TimeControl "40/5400+30:1800+30"]

1. Nf3 {[%emt 0:00:00]} d5 {[%emt 0:00:00]} 2. c4 {[%emt 0:00:00]} e6 {[%emt 0:00:15]} 3. g3 {[%emt 0:00:18]} Nf6 {[%emt 0:00:21]} 4. Bg2 {[%emt 0:00:14]} Be7 {[%emt 0:05:38]} 5. O-O {[%emt 0:00:18]} O-O {[%emt 0:00:16]} 6. b3 {[%emt 0:00:22]} c5 {[%emt 0:00:56]} 7. cxd5 {[%emt 0:00:44]} Nxd5 {[%emt 0:01:17]} 8. Bb2 {[%emt 0:01:42]} Nc6 {[%emt 0:00:43]} 9. d3 {[%emt 0:03:38]} Bf6 {[%emt 0:06:07]} 10. Qc1 {[%emt 0:05:20]} Bxb2 {[%emt 0:01:47]} 11. Qxb2 {[%emt 0:00:08]} Qe7 {[%emt 0:01:57]} 12. Nc3 {[%emt 0:01:05]} Rd8 {[%emt 0:05:57]} 13. Rac1 {[%emt 0:01:33]} b6 {[%emt 0:05:59]} 14. Nxd5 {[%emt 0:03:15]} exd5 {[%emt 0:00:22]} 15. d4 {[%emt 0:02:52]} Qf6 {[%emt 0:06:09]} 16. Rfd1 {[%emt 0:01:05]} Bb7 {[%emt 0:00:58]} 17. Qd2 {[%emt 0:00:47]} cxd4 {[%emt 0:09:09]} 18. Nxd4 {[%emt 0:00:14]} h6 {[%emt 0:13:26]} 19. Nxc6 {[%emt 0:03:39]} Bxc6 {[%emt 0:00:05]} 20. Qc3 {[%emt 0:01:06]} Qxc3 {[%emt 0:02:09]} 21. Rxc3 {[%emt 0:00:08]} Bb7 {[%emt 0:02:38]} 22. Rcd3 {[%emt 0:04:21]} Rac8 {[%emt 0:01:42]} 23. Bxd5 {[%emt 0:01:47]} Bxd5 {[%emt 0:00:07]} 24. Rxd5 {[%emt 0:05:58]} Rxd5 {[%emt 0:00:55]} 25. Rxd5 {[%emt 0:00:05]} Rc2 {[%emt 0:00:08]} 26. a4 {[%emt 0:00:43]} Rxe2 {[%emt 0:00:19]} 27. Rd8+ {[%emt 0:00:04]} Kh7 {[%emt 0:00:07]} 28. Rd7 {[%emt 0:00:37]} f6 {[%emt 0:13:37]} 29. Rxa7 {[%emt 0:05:30]} Rb2 {[%emt 0:00:34]} 30. Rb7 {[%emt 0:00:12]} Rxb3 {[%emt 0:00:05]} 31. a5 {[%emt 0:00:06]} b5 {[%emt 0:00:13]} 32. Kf1 {[%emt 0:01:17]} b4 {[%emt 0:01:03]} 33. Ke2 {[%emt 0:02:02]} Ra3 {[%emt 0:00:18]} 34. Rb5 {[%emt 0:01:52]} Kg6 {[%emt 0:02:41]} 35. h4 {[%emt 0:02:59]} h5 {[%emt 0:00:54]} 36. f3 {[%emt 0:02:46]} Kh6 {[%emt 0:03:48]} 37. Rxb4 {[%emt 0:01:39]} Rxa5 {[%emt 0:01:05]} 38. Ke3 {[%emt 0:00:11]} Ra3+ {[%emt 0:02:03]} 39. Ke4 {[%emt 0:00:58]} Ra5 {[%emt 0:02:11]} 40. g4 {[%emt 0:00:00]} Re5+ {[%emt 0:00:00]} 41. Kf4 {[%emt 0:01:27]} g5+ {[%emt 0:05:20]} 42. hxg5+ {[%emt 0:00:24]} Rxg5 {[%emt 0:00:11]} 43. Rb8 {[%emt 0:00:42]} hxg4 {[%emt 0:01:34]} 44. fxg4 {[%emt 0:00:38]} Ra5 {[%emt 0:00:49]} 45. Rb6 {[%emt 0:00:18]} Kg6 {[%emt 0:00:09]} 46. Rb4 {[%emt 0:00:31]} Rc5 {[%emt 0:00:17]} 1/2-1/2